Workbook

Sheet 季度销售报表
A2: 季度销售报表 | J2: 显示前 | K2: 5 | L2: 产品
J4: 显示所有其他 | K4: 否 | L4: 产品
B34: 产品 | C34: 第 1 季度 | D34: 第 2 季度 | E34: 第 3 季度 | F34: 第 4 季度 | G34: 总计
B35: 车架 | C35: 40000 | D35: 45000 | E35: 50000 | F35: 50000 | G35: =SUM(Sales[[#This Row],[第 1 季度]:[第 4 季度]]) -> 185000
B36: 碟式刹车，前侧 | C36: 2940 | D36: 2499 | E36: 3234 | F36: 3675 | G36: =SUM(Sales[[#This Row],[第 1 季度]:[第 4 季度]]) -> 12348
B37: 卡钳刹车，前侧 | C37: 2000 | D37: 1700 | E37: 2200 | F37: 2500 | G37: =SUM(Sales[[#This Row],[第 1 季度]:[第 4 季度]]) -> 8400
B38: 碟式刹车，后侧 | C38: 4000 | D38: 3400 | E38: 4400 | F38: 5000 | G38: =SUM(Sales[[#This Row],[第 1 季度]:[第 4 季度]]) -> 16800
B39: 卡钳刹车，后侧 | C39: 2940 | D39: 2499 | E39: 3234 | F39: 3675 | G39: =SUM(Sales[[#This Row],[第 1 季度]:[第 4 季度]]) -> 12348
B40: 车座 | C40: 2350 | D40: 1997.5 | E40: 320 | F40: 2937.5 | G40: =SUM(Sales[[#This Row],[第 1 季度]:[第 4 季度]]) -> 7605
B41: 前叉 | C41: 1000 | D41: 850 | E41: 1100 | F41: 1250 | G41: =SUM(Sales[[#This Row],[第 1 季度]:[第 4 季度]]) -> 4200
B42: 刹车线 | C42: 3000 | D42: 2550 | E42: 3300 | F42: 3750 | G42: =SUM(Sales[[#This Row],[第 1 季度]:[第 4 季度]]) -> 12600
B43: 变速线 | C43: 2500 | D43: 2125 | E43: 2750 | F43: 3125 | G43: =SUM(Sales[[#This Row],[第 1 季度]:[第 4 季度]]) -> 10500
B44: 后链轮 | C44: 4000 | D44: 3400 | E44: 4400 | F44: 5000 | G44: =SUM(Sales[[#This Row],[第 1 季度]:[第 4 季度]]) -> 16800
B45: 前链轮 | C45: 2000 | D45: 1700 | E45: 2200 | F45: 2500 | G45: =SUM(Sales[[#This Row],[第 1 季度]:[第 4 季度]]) -> 8400
B46: 把手 | C46: 18950 | D46: 16107.5 | E46: 34450 | F46: 33330 | G46: =SUM(Sales[[#This Row],[第 1 季度]:[第 4 季度]]) -> 102837.5
B47: 刹车把手 | C47: 5440 | D47: 4624 | E47: 5984 | F47: 6800 | G47: =SUM(Sales[[#This Row],[第 1 季度]:[第 4 季度]]) -> 22848
B48: 座杆 | C48: 2000 | D48: 1700 | E48: 2200 | F48: 2500 | G48: =SUM(Sales[[#This Row],[第 1 季度]:[第 4 季度]]) -> 8400
B49: 车把夹 | C49: 600 | D49: 510 | E49: 660 | F49: 750 | G49: =SUM(Sales[[#This Row],[第 1 季度]:[第 4 季度]]) -> 2520
B50: 车座包 | C50: 24130 | D50: 20510.5 | E50: 40000 | F50: 30162.5 | G50: =SUM(Sales[[#This Row],[第 1 季度]:[第 4 季度]]) -> 114803
B51: 辐条 | C51: 2330 | D51: 1980.5 | E51: 2563 | F51: 2912.5 | G51: =SUM(Sales[[#This Row],[第 1 季度]:[第 4 季度]]) -> 9786
B52: 车圈 | C52: 3540 | D52: 3009 | E52: 3894 | F52: 4425 | G52: =SUM(Sales[[#This Row],[第 1 季度]:[第 4 季度]]) -> 14868
B53: 轮胎 | C53: 4230 | D53: 3595.5 | E53: 4653 | F53: 5287.5 | G53: =SUM(Sales[[#This Row],[第 1 季度]:[第 4 季度]]) -> 17766
B54: 把套 | C54: 22220 | D54: 18887 | E54: 24442 | F54: 27775 | G54: =SUM(Sales[[#This Row],[第 1 季度]:[第 4 季度]]) -> 93324
B55: 握把带 | C55: 15504 | D55: 13178.4 | E55: 17054.4 | F55: 19380 | G55: =SUM(Sales[[#This Row],[第 1 季度]:[第 4 季度]]) -> 65116.8
B56: 刹车板 | C56: 300 | D56: 255 | E56: 330 | F56: 375 | G56: =SUM(Sales[[#This Row],[第 1 季度]:[第 4 季度]]) -> 1260
B57: 链条 | C57: 2080 | D57: 1768 | E57: 2288 | F57: 2600 | G57: =SUM(Sales[[#This Row],[第 1 季度]:[第 4 季度]]) -> 8736
B58: 变速器 | C58: 3560 | D58: 3026 | E58: 3916 | F58: 4450 | G58: =SUM(Sales[[#This Row],[第 1 季度]:[第 4 季度]]) -> 14952
B59: 快拆花鼓 | C59: 2580 | D59: 2193 | E59: 2838 | F59: 3225 | G59: =SUM(Sales[[#This Row],[第 1 季度]:[第 4 季度]]) -> 10836
B60: 标准花鼓 | C60: 4140 | D60: 3519 | E60: 4554 | F60: 5175 | G60: =SUM(Sales[[#This Row],[第 1 季度]:[第 4 季度]]) -> 17388
B61: 踏板 | C61: 3690 | D61: 3136.5 | E61: 4059 | F61: 4612.5 | G61: =SUM(Sales[[#This Row],[第 1 季度]:[第 4 季度]]) -> 15498
B62: 链罩 | C62: 3240 | D62: 2754 | E62: 3564 | F62: 4050 | G62: =SUM(Sales[[#This Row],[第 1 季度]:[第 4 季度]]) -> 13608
B63: 反光镜 | C63: 870 | D63: 739.5 | E63: 957 | F63: 1087.5 | G63: =SUM(Sales[[#This Row],[第 1 季度]:[第 4 季度]]) -> 3654

Sheet 计算 (hidden)
A1: *** 此工作表应保持为隐藏状态 ****
E4: 产品 | F4: 第 1 季度 | G4: 第 2 季度 | H4: 第 3 季度 | I4: 第 4 季度 | J4: 总计
B5: 1 | C5: =IF($B5>n,"",LARGE(Sales[总计],1)) -> 185000 | D5: =IF($B5>n,"",IF(C4=C5,MATCH(C5,OFFSET(Sales[总计],D4,),0)+D4,MATCH(C5,Sales[总计],0))) -> 1 | E5: =IF($B5>n,"",INDEX(Sales[产品],D5)) -> 车架 | F5: =IF($B5>n,"",INDEX(Sales[第 1 季度],$D5)) -> 40000 | G5: =IF($B5>n,"",INDEX(Sales[第 2 季度],$D5)) -> 45000 | H5: =IF($B5>n,"",INDEX(Sales[第 3 季度],$D5)) -> 50000 | I5: =IF($B5>n,"",INDEX(Sales[第 4 季度],$D5)) -> 50000 | J5: =IF($B5>n,"",SUM(F5:I5)) -> 185000
B6: 2 | C6: =IF($B6>n,"",LARGE(Sales[总计],2)) -> 114803 | D6: =IF($B6>n,"",IF(C5=C6,MATCH(C6,OFFSET(Sales[总计],D5,),0)+D5,MATCH(C6,Sales[总计],0))) -> 16 | E6: =IF($B6>n,"",INDEX(Sales[产品],D6)) -> 车座包 | F6: =IF($B6>n,"",INDEX(Sales[第 1 季度],$D6)) -> 24130 | G6: =IF($B6>n,"",INDEX(Sales[第 2 季度],$D6)) -> 20510.5 | H6: =IF($B6>n,"",INDEX(Sales[第 3 季度],$D6)) -> 40000 | I6: =IF($B6>n,"",INDEX(Sales[第 4 季度],$D6)) -> 30162.5 | J6: 114803
B7: 3 | C7: =IF($B7>n,"",LARGE(Sales[总计],3)) -> 102837.5 | D7: =IF($B7>n,"",IF(C6=C7,MATCH(C7,OFFSET(Sales[总计],D6,),0)+D6,MATCH(C7,Sales[总计],0))) -> 12 | E7: =IF($B7>n,"",INDEX(Sales[产品],D7)) -> 把手 | F7: =IF($B7>n,"",INDEX(Sales[第 1 季度],$D7)) -> 18950 | G7: =IF($B7>n,"",INDEX(Sales[第 2 季度],$D7)) -> 16107.5 | H7: =IF($B7>n,"",INDEX(Sales[第 3 季度],$D7)) -> 34450 | I7: =IF($B7>n,"",INDEX(Sales[第 4 季度],$D7)) -> 33330 | J7: 102837.5
B8: 4 | C8: =IF($B8>n,"",LARGE(Sales[总计],4)) -> 93324 | D8: =IF($B8>n,"",IF(C7=C8,MATCH(C8,OFFSET(Sales[总计],D7,),0)+D7,MATCH(C8,Sales[总计],0))) -> 20 | E8: =IF($B8>n,"",INDEX(Sales[产品],D8)) -> 把套 | F8: =IF($B8>n,"",INDEX(Sales[第 1 季度],$D8)) -> 22220 | G8: =IF($B8>n,"",INDEX(Sales[第 2 季度],$D8)) -> 18887 | H8: =IF($B8>n,"",INDEX(Sales[第 3 季度],$D8)) -> 24442 | I8: =IF($B8>n,"",INDEX(Sales[第 4 季度],$D8)) -> 27775 | J8: 93324
B9: 5 | C9: =IF($B9>n,"",LARGE(Sales[总计],5)) -> 65116.8 | D9: =IF($B9>n,"",IF(C8=C9,MATCH(C9,OFFSET(Sales[总计],D8,),0)+D8,MATCH(C9,Sales[总计],0))) -> 21 | E9: =IF($B9>n,"",INDEX(Sales[产品],D9)) -> 握把带 | F9: =IF($B9>n,"",INDEX(Sales[第 1 季度],$D9)) -> 15504 | G9: =IF($B9>n,"",INDEX(Sales[第 2 季度],$D9)) -> 13178.4 | H9: =IF($B9>n,"",INDEX(Sales[第 3 季度],$D9)) -> 17054.4 | I9: =IF($B9>n,"",INDEX(Sales[第 4 季度],$D9)) -> 19380 | J9: 65116.8
B10: 6 | C10: =IF($B10>n,"",LARGE(Sales[总计],6)) ->  | D10: =IF($B10>n,"",IF(C9=C10,MATCH(C10,OFFSET(Sales[总计],D9,),0)+D9,MATCH(C10,Sales[总计],0))) ->  | E10: =IF($B10>n,"",INDEX(Sales[产品],D10)) ->  | F10: =IF($B10>n,"",INDEX(Sales[第 1 季度],$D10)) ->  | G10: =IF($B10>n,"",INDEX(Sales[第 2 季度],$D10)) ->  | H10: =IF($B10>n,"",INDEX(Sales[第 3 季度],$D10)) ->  | I10: =IF($B10>n,"",INDEX(Sales[第 4 季度],$D10)) -> 
B11: 7 | C11: =IF($B11>n,"",LARGE(Sales[总计],7)) ->  | D11: =IF($B11>n,"",IF(C10=C11,MATCH(C11,OFFSET(Sales[总计],D10,),0)+D10,MATCH(C11,Sales[总计],0))) ->  | E11: =IF($B11>n,"",INDEX(Sales[产品],D11)) ->  | F11: =IF($B11>n,"",INDEX(Sales[第 1 季度],$D11)) ->  | G11: =IF($B11>n,"",INDEX(Sales[第 2 季度],$D11)) ->  | H11: =IF($B11>n,"",INDEX(Sales[第 3 季度],$D11)) ->  | I11: =IF($B11>n,"",INDEX(Sales[第 4 季度],$D11)) -> 
B12: 8 | C12: =IF($B12>n,"",LARGE(Sales[总计],8)) ->  | D12: =IF($B12>n,"",IF(C11=C12,MATCH(C12,OFFSET(Sales[总计],D11,),0)+D11,MATCH(C12,Sales[总计],0))) ->  | E12: =IF($B12>n,"",INDEX(Sales[产品],D12)) ->  | F12: =IF($B12>n,"",INDEX(Sales[第 1 季度],$D12)) ->  | G12: =IF($B12>n,"",INDEX(Sales[第 2 季度],$D12)) ->  | H12: =IF($B12>n,"",INDEX(Sales[第 3 季度],$D12)) ->  | I12: =IF($B12>n,"",INDEX(Sales[第 4 季度],$D12)) -> 
B13: 9 | C13: =IF($B13>n,"",LARGE(Sales[总计],9)) ->  | D13: =IF($B13>n,"",IF(C12=C13,MATCH(C13,OFFSET(Sales[总计],D12,),0)+D12,MATCH(C13,Sales[总计],0))) ->  | E13: =IF($B13>n,"",INDEX(Sales[产品],D13)) ->  | F13: =IF($B13>n,"",INDEX(Sales[第 1 季度],$D13)) ->  | G13: =IF($B13>n,"",INDEX(Sales[第 2 季度],$D13)) ->  | H13: =IF($B13>n,"",INDEX(Sales[第 3 季度],$D13)) ->  | I13: =IF($B13>n,"",INDEX(Sales[第 4 季度],$D13)) -> 
B14: 10 | C14: =IF($B14>n,"",LARGE(Sales[总计],10)) ->  | D14: =IF($B14>n,"",IF(C13=C14,MATCH(C14,OFFSET(Sales[总计],D13,),0)+D13,MATCH(C14,Sales[总计],0))) ->  | E14: =IF($B14>n,"",INDEX(Sales[产品],D14)) ->  | F14: =IF($B14>n,"",INDEX(Sales[第 1 季度],$D14)) ->  | G14: =IF($B14>n,"",INDEX(Sales[第 2 季度],$D14)) ->  | H14: =IF($B14>n,"",INDEX(Sales[第 3 季度],$D14)) ->  | I14: =IF($B14>n,"",INDEX(Sales[第 4 季度],$D14)) -> 
E15: ="" -> 
B16: =IncludeOther="yes" -> FALSE | E16: 其他 | F16: =SUM(Sales[第 1 季度]) - SUM(F5:F14) -> 65330 | G16: =SUM(Sales[第 2 季度]) - SUM(G5:G14) -> 55530.5 | H16: =SUM(Sales[第 3 季度]) - SUM(H5:H14) -> 69598 | I16: =SUM(Sales[第 4 季度]) - SUM(I5:I14) -> 81662.5 | J16: =SUM(Sales[总计]) - SUM(J5:J14) -> 272121
E18: 总计 | F18: =SUM(Sales[第 1 季度]) -> 186134 | G18: =SUM(Sales[第 2 季度]) -> 169213.9 | H18: =SUM(Sales[第 3 季度]) -> 235544.4 | I18: =SUM(Sales[第 4 季度]) -> 242310 | J18: =SUM(Sales[总计]) -> 833202.3
B22: ="总计和前 " & n & "项产品" -> 总计和前 5项产品
